[Event "Titled Tuesday Blitz May 10 Early 2022"]
[White "Sadhwani, Raunak"]
[Black "Ozates, Tuna"]
[WhiteFideId "35093487"]
[BlackFideId "6354521"]
[WhiteElo "2616"]
[BlackElo "1887"]
[Result "1-0"]
[Round "01"]
[TimeControl "180+1"]
[Date "2022.05.10"]
[WhiteClock "0:00:12"]
[BlackClock "0:00:02"]

1. e4 {[%clk 0:03:00]}  e5 {[%clk 0:02:57]} 2. Nf3 {[%clk 0:03:01]}  Nc6 {[%clk 0:02:56]} 3. g3 {[%clk 0:03:00]}  g6 {[%clk 0:02:53]} 4. Bg2 {[%clk 0:03:00]}  Bg7 {[%clk 0:02:53]} 5. O-O {[%clk 0:03:00]}  Nge7 {[%clk 0:02:54]} 6. d3 {[%clk 0:02:50]}  O-O {[%clk 0:02:52]} 7. c4 {[%clk 0:02:50]}  d6 {[%clk 0:02:42]} 8. Nc3 {[%clk 0:02:49]}  h6 {[%clk 0:02:41]} 9. Rb1 {[%clk 0:02:42]}  f5 {[%clk 0:02:41]} 10. b4 {[%clk 0:02:42]}  f4 {[%clk 0:02:39]} 11. b5 {[%clk 0:02:42]}  Nd4 {[%clk 0:02:34]} 12. Nxd4 {[%clk 0:02:17]}  exd4 {[%clk 0:02:32]} 13. Nd5 {[%clk 0:02:17]}  Nxd5 {[%clk 0:02:32]} 14. cxd5 {[%clk 0:02:18]}  Be5 {[%clk 0:02:30]} 15. Rb4 {[%clk 0:02:17]}  Kg7 {[%clk 0:02:20]} 16. gxf4 {[%clk 0:02:12]}  Bxf4 {[%clk 0:02:19]} 17. Bxf4 {[%clk 0:02:11]}  Rxf4 {[%clk 0:02:20]} 18. Rxd4 {[%clk 0:02:12]}  Qg5 {[%clk 0:02:16]} 19. Kh1 {[%clk 0:02:09]}  Rh4 {[%clk 0:02:15]} 20. Rc4 {[%clk 0:02:05]}  Qf4 {[%clk 0:02:05]} 21. Rxc7+ {[%clk 0:01:57]}  Kg8 {[%clk 0:01:58]} 22. Rxc8+ {[%clk 0:01:57]}  Rxc8 {[%clk 0:01:59]} 23. h3 {[%clk 0:01:57]}  g5 {[%clk 0:01:47]} 24. f3 {[%clk 0:01:52]}  Qg3 {[%clk 0:01:17]} 25. Qd2 {[%clk 0:01:38]}  Rf8 {[%clk 0:01:10]} 26. d4 {[%clk 0:01:35]}  h5 {[%clk 0:00:57]} 27. e5 {[%clk 0:00:25]}  dxe5 {[%clk 0:00:51]} 28. dxe5 {[%clk 0:00:26]}  Qxe5 {[%clk 0:00:49]} 29. Re1 {[%clk 0:00:24]}  Qg3 {[%clk 0:00:47]} 30. Re3 {[%clk 0:00:23]}  Rd8 {[%clk 0:00:26]} 31. Qd3 {[%clk 0:00:18]}  Rxh3+ {[%clk 0:00:12]} 32. Kg1 {[%clk 0:00:18]}  Qh2+ {[%clk 0:00:11]} 33. Kf1 {[%clk 0:00:19]}  Rd6 {[%clk 0:00:09]} 34. Qf5 {[%clk 0:00:12]}  Rg3 {[%clk 0:00:04]} 35. Re8+ {[%clk 0:00:12]}  Kg7 {[%clk 0:00:04]} 36. Re7+ {[%clk 0:00:12]}  Kg8 {[%clk 0:00:02]} 37. Qf7+ {[%clk 0:00:12]} 1-0


[Site "https://www.chess.com"]

[Event "Titled Tuesday Blitz May 10 Early 2022"]
[White "Sailer, Mike"]
[Black "Song, Michael"]
[WhiteFideId "2012901"]
[BlackFideId "2613190"]
[WhiteElo "2109"]
[BlackElo "2274"]
[Result "0-1"]
[Round "01"]
[TimeControl "180+1"]
[Date "2022.05.11"]
[WhiteClock "0:00:49"]
[BlackClock "0:01:38"]

1. d4 {[%clk 0:03:00]}  f5 {[%clk 0:02:59]} 2. e4 {[%clk 0:02:58]}  fxe4 {[%clk 0:02:59]} 3. Nc3 {[%clk 0:02:57]}  Nf6 {[%clk 0:02:58]} 4. Bg5 {[%clk 0:02:57]}  g6 {[%clk 0:02:49]} 5. Bxf6 {[%clk 0:02:56]}  exf6 {[%clk 0:02:49]} 6. Nxe4 {[%clk 0:02:56]}  d5 {[%clk 0:02:49]} 7. Ng3 {[%clk 0:02:47]}  Bd6 {[%clk 0:02:48]} 8. Bd3 {[%clk 0:02:47]}  Nc6 {[%clk 0:02:47]} 9. c3 {[%clk 0:02:46]}  Qe7+ {[%clk 0:02:41]} 10. N1e2 {[%clk 0:02:46]}  Be6 {[%clk 0:02:41]} 11. Qc2 {[%clk 0:02:41]}  O-O-O {[%clk 0:02:39]} 12. O-O-O {[%clk 0:02:42]}  Kb8 {[%clk 0:02:34]} 13. Kb1 {[%clk 0:02:42]}  Qf7 {[%clk 0:02:30]} 14. h4 {[%clk 0:02:33]}  f5 {[%clk 0:02:25]} 15. f4 {[%clk 0:02:14]}  h5 {[%clk 0:02:11]} 16. Nf1 {[%clk 0:02:11]}  Na5 {[%clk 0:02:04]} 17. Nd2 {[%clk 0:02:05]}  Nc4 {[%clk 0:02:02]} 18. Bxc4 {[%clk 0:02:03]}  dxc4 {[%clk 0:02:02]} 19. Nf3 {[%clk 0:02:03]}  Bd5 {[%clk 0:02:00]} 20. Ng5 {[%clk 0:01:39]}  Qd7 {[%clk 0:01:54]} 21. Rhg1 {[%clk 0:01:22]}  Rhe8 {[%clk 0:01:53]} 22. g3 {[%clk 0:01:20]}  Re3 {[%clk 0:01:44]} 23. Qd2 {[%clk 0:01:05]}  Rde8 {[%clk 0:01:44]} 24. Rge1 {[%clk 0:01:00]}  Qe7 {[%clk 0:01:37]} 25. Nh3 {[%clk 0:00:52]}  Rxe2 {[%clk 0:01:36]} 26. Rxe2 {[%clk 0:00:49]}  Qxe2 {[%clk 0:01:37]} 27. Qxe2 {[%clk 0:00:49]}  Rxe2 {[%clk 0:01:38]} 0-1


[Site "https://www.chess.com"]

[Event "Titled Tuesday Blitz May 10 Early 2022"]
[White "Santos Ruiz, Miguel"]
[Black "Bas Mas, Jose Joaquin"]
[WhiteFideId "22291482"]
[BlackFideId "22219064"]
[WhiteElo "2486"]
[BlackElo "2233"]
[Result "1-0"]
[Round "01"]
[TimeControl "180+1"]
[Date "2022.05.11"]
[WhiteClock "0:01:16"]
[BlackClock "0:00:07"]

1. e4 {[%clk 0:02:59]}  c5 {[%clk 0:02:57]} 2. Nf3 {[%clk 0:02:59]}  Nc6 {[%clk 0:02:54]} 3. d4 {[%clk 0:02:59]}  cxd4 {[%clk 0:02:55]} 4. Nxd4 {[%clk 0:03:00]}  g6 {[%clk 0:02:45]} 5. c4 {[%clk 0:02:59]}  Bg7 {[%clk 0:02:44]} 6. Be3 {[%clk 0:02:59]}  Nf6 {[%clk 0:02:43]} 7. Nc3 {[%clk 0:02:59]}  Ng4 {[%clk 0:02:43]} 8. Qxg4 {[%clk 0:02:58]}  Nxd4 {[%clk 0:02:43]} 9. Qd1 {[%clk 0:02:58]}  e5 {[%clk 0:02:44]} 10. Bd3 {[%clk 0:02:57]}  O-O {[%clk 0:02:38]} 11. O-O {[%clk 0:02:57]}  d6 {[%clk 0:02:30]} 12. Rc1 {[%clk 0:02:55]}  f5 {[%clk 0:02:29]} 13. exf5 {[%clk 0:02:51]}  gxf5 {[%clk 0:02:30]} 14. Bxd4 {[%clk 0:02:46]}  exd4 {[%clk 0:02:29]} 15. Nd5 {[%clk 0:02:47]}  Be6 {[%clk 0:02:13]} 16. Qf3 {[%clk 0:02:40]}  Be5 {[%clk 0:02:05]} 17. Rfe1 {[%clk 0:02:33]}  Kh8 {[%clk 0:02:03]} 18. g3 {[%clk 0:02:27]}  Qg5 {[%clk 0:01:49]} 19. Nc7 {[%clk 0:02:20]}  Bd7 {[%clk 0:01:40]} 20. Nxa8 {[%clk 0:02:19]}  Bc6 {[%clk 0:01:40]} 21. Qe2 {[%clk 0:02:09]}  f4 {[%clk 0:01:33]} 22. Be4 {[%clk 0:02:00]}  fxg3 {[%clk 0:01:31]} 23. hxg3 {[%clk 0:01:58]}  Rxa8 {[%clk 0:01:10]} 24. Bxc6 {[%clk 0:01:56]}  bxc6 {[%clk 0:01:11]} 25. c5 {[%clk 0:01:54]}  Rg8 {[%clk 0:01:00]} 26. Qf3 {[%clk 0:01:52]}  Qd2 {[%clk 0:00:41]} 27. cxd6 {[%clk 0:01:44]}  d3 {[%clk 0:00:26]} 28. Rxe5 {[%clk 0:01:21]}  Qxc1+ {[%clk 0:00:25]} 29. Kg2 {[%clk 0:01:21]}  Qh6 {[%clk 0:00:09]} 30. Qxd3 {[%clk 0:01:21]}  Qf6 {[%clk 0:00:08]} 31. Re7 {[%clk 0:01:17]}  Rf8 {[%clk 0:00:07]} 32. Qxh7# {[%clk 0:01:16]} 1-0


[Site "https://www.chess.com"]

[Event "Titled Tuesday Blitz May 10 Early 2022"]
[White "Sarana, Alexey"]
[Black "Nguyen Hong Nhung"]
[WhiteFideId "24133795"]
[BlackFideId "12412201"]
[WhiteElo "2666"]
[BlackElo "1758"]
[Result "1-0"]
[Round "01"]
[TimeControl "180+1"]
[Date "2022.05.10"]
[WhiteClock "0:01:32"]
[BlackClock "0:00:24"]

1. d4 {[%clk 0:03:00]}  f5 {[%clk 0:02:59]} 2. c4 {[%clk 0:02:58]}  Nf6 {[%clk 0:02:59]} 3. Nc3 {[%clk 0:02:58]}  g6 {[%clk 0:02:59]} 4. Bg5 {[%clk 0:02:59]}  Bg7 {[%clk 0:02:59]} 5. e3 {[%clk 0:03:00]}  d6 {[%clk 0:02:58]} 6. Bd3 {[%clk 0:03:00]}  e5 {[%clk 0:02:57]} 7. f3 {[%clk 0:02:58]}  Nc6 {[%clk 0:02:54]} 8. Nge2 {[%clk 0:02:58]}  O-O {[%clk 0:02:53]} 9. a3 {[%clk 0:02:58]}  Qe8 {[%clk 0:02:49]} 10. O-O {[%clk 0:02:56]}  h6 {[%clk 0:02:47]} 11. Bh4 {[%clk 0:02:56]}  g5 {[%clk 0:02:42]} 12. Bf2 {[%clk 0:02:56]}  Bd7 {[%clk 0:02:42]} 13. Qc2 {[%clk 0:02:54]}  f4 {[%clk 0:02:34]} 14. exf4 {[%clk 0:02:51]}  exf4 {[%clk 0:02:29]} 15. Rae1 {[%clk 0:02:48]}  Qd8 {[%clk 0:02:27]} 16. b4 {[%clk 0:02:47]}  Be8 {[%clk 0:02:23]} 17. b5 {[%clk 0:02:46]}  Ne7 {[%clk 0:02:23]} 18. d5 {[%clk 0:02:44]}  Nd7 {[%clk 0:02:09]} 19. Nd4 {[%clk 0:02:40]}  Nc5 {[%clk 0:02:09]} 20. Ne4 {[%clk 0:02:39]}  Nxd3 {[%clk 0:01:57]} 21. Qxd3 {[%clk 0:02:39]}  Bf7 {[%clk 0:01:56]} 22. Ne6 {[%clk 0:02:36]}  Bxe6 {[%clk 0:01:54]} 23. dxe6 {[%clk 0:02:37]}  Ng6 {[%clk 0:01:54]} 24. Qd5 {[%clk 0:02:31]}  Qe7 {[%clk 0:01:51]} 25. Qxb7 {[%clk 0:02:31]}  Ne5 {[%clk 0:01:46]} 26. c5 {[%clk 0:02:17]}  Qxe6 {[%clk 0:01:37]} 27. Qxc7 {[%clk 0:02:17]}  dxc5 {[%clk 0:01:35]} 28. Nxc5 {[%clk 0:02:13]}  Qf5 {[%clk 0:01:33]} 29. a4 {[%clk 0:02:07]}  Rf7 {[%clk 0:01:30]} 30. Qd6 {[%clk 0:02:06]}  Nc4 {[%clk 0:01:25]} 31. Qc6 {[%clk 0:02:01]}  Rc8 {[%clk 0:01:24]} 32. Re8+ {[%clk 0:02:01]}  Rxe8 {[%clk 0:01:24]} 33. Qxe8+ {[%clk 0:02:02]}  Kh7 {[%clk 0:01:22]} 34. Ne6 {[%clk 0:01:57]}  Be5 {[%clk 0:01:10]} 35. Re1 {[%clk 0:01:56]}  Nd6 {[%clk 0:01:09]} 36. Nxg5+ {[%clk 0:01:56]}  hxg5 {[%clk 0:01:05]} 37. Qxe5 {[%clk 0:01:57]}  Qg6 {[%clk 0:01:03]} 38. Qd5 {[%clk 0:01:54]}  Nf5 {[%clk 0:01:00]} 39. a5 {[%clk 0:01:51]}  Rc7 {[%clk 0:00:52]} 40. h3 {[%clk 0:01:49]}  Ng7 {[%clk 0:00:46]} 41. a6 {[%clk 0:01:47]}  Rc2 {[%clk 0:00:41]} 42. Bxa7 {[%clk 0:01:46]}  Rb2 {[%clk 0:00:38]} 43. Bf2 {[%clk 0:01:44]}  Qc2 {[%clk 0:00:36]} 44. Qe4+ {[%clk 0:01:40]}  Qxe4 {[%clk 0:00:36]} 45. Rxe4 {[%clk 0:01:40]}  Rxb5 {[%clk 0:00:36]} 46. a7 {[%clk 0:01:40]}  Ra5 {[%clk 0:00:37]} 47. Rb4 {[%clk 0:01:37]}  Nf5 {[%clk 0:00:36]} 48. Rb8 {[%clk 0:01:34]}  Ne3 {[%clk 0:00:24]} 49. a8=Q {[%clk 0:01:32]} 1-0


[Site "https://www.chess.com"]

[Event "Titled Tuesday Blitz May 10 Early 2022"]
[White "Seo, Jung Min"]
[Black "Bach, Ngoc Thuy Duong"]
[WhiteFideId "1734687"]
[BlackFideId "12408956"]
[WhiteElo "2401"]
[BlackElo "1862"]
[Result "1-0"]
[Round "01"]
[TimeControl "180+1"]
[Date "2022.05.11"]
[WhiteClock "0:00:54"]
[BlackClock "0:00:01"]

1. d4 {[%clk 0:03:00]}  d5 {[%clk 0:02:59]} 2. c4 {[%clk 0:03:00]}  e6 {[%clk 0:02:59]} 3. Nf3 {[%clk 0:03:01]}  c6 {[%clk 0:02:58]} 4. Bg5 {[%clk 0:03:00]}  Be7 {[%clk 0:02:55]} 5. Bxe7 {[%clk 0:03:00]}  Nxe7 {[%clk 0:02:56]} 6. e3 {[%clk 0:03:00]}  Nd7 {[%clk 0:02:49]} 7. Nbd2 {[%clk 0:03:00]}  Nf6 {[%clk 0:02:49]} 8. Bd3 {[%clk 0:02:59]}  dxc4 {[%clk 0:02:48]} 9. Nxc4 {[%clk 0:02:58]}  b6 {[%clk 0:02:44]} 10. O-O {[%clk 0:02:54]}  Bb7 {[%clk 0:02:44]} 11. b4 {[%clk 0:02:53]}  Ned5 {[%clk 0:02:40]} 12. a3 {[%clk 0:02:51]}  O-O {[%clk 0:02:37]} 13. Qb3 {[%clk 0:02:49]}  Qe7 {[%clk 0:02:28]} 14. Rfe1 {[%clk 0:02:43]}  Rfd8 {[%clk 0:02:25]} 15. e4 {[%clk 0:02:42]}  Nf4 {[%clk 0:02:25]} 16. Bc2 {[%clk 0:02:42]}  Rac8 {[%clk 0:02:12]} 17. Rad1 {[%clk 0:02:36]}  c5 {[%clk 0:02:08]} 18. g3 {[%clk 0:02:34]}  Ng6 {[%clk 0:02:07]} 19. e5 {[%clk 0:02:23]}  Ne8 {[%clk 0:02:06]} 20. dxc5 {[%clk 0:02:13]}  Rxd1 {[%clk 0:01:58]} 21. Rxd1 {[%clk 0:02:13]}  bxc5 {[%clk 0:01:59]} 22. Nd6 {[%clk 0:02:09]}  Nxd6 {[%clk 0:01:44]} 23. exd6 {[%clk 0:02:08]}  Qf6 {[%clk 0:01:39]} 24. Nd2 {[%clk 0:01:54]}  Bd5 {[%clk 0:01:35]} 25. Qb1 {[%clk 0:01:42]}  cxb4 {[%clk 0:01:29]} 26. axb4 {[%clk 0:01:38]}  Qe5 {[%clk 0:00:39]} 27. Ne4 {[%clk 0:01:34]}  f5 {[%clk 0:00:34]} 28. d7 {[%clk 0:01:32]}  Rd8 {[%clk 0:00:34]} 29. Nc5 {[%clk 0:01:31]}  Qe2 {[%clk 0:00:10]} 30. Bb3 {[%clk 0:01:25]}  Ne7 {[%clk 0:00:08]} 31. Qd3 {[%clk 0:01:08]}  Qxd3 {[%clk 0:00:06]} 32. Rxd3 {[%clk 0:01:08]}  Bxb3 {[%clk 0:00:06]} 33. Rxb3 {[%clk 0:01:09]}  Kf7 {[%clk 0:00:06]} 34. Ra3 {[%clk 0:01:08]}  Rb8 {[%clk 0:00:03]} 35. Rxa7 {[%clk 0:01:03]}  Rd8 {[%clk 0:00:02]} 36. b5 {[%clk 0:01:00]}  Kf6 {[%clk 0:00:03]} 37. b6 {[%clk 0:00:58]}  Ke5 {[%clk 0:00:02]} 38. b7 {[%clk 0:00:56]}  Kd6 {[%clk 0:00:02]} 39. Ra8 {[%clk 0:00:54]}  Rxa8 {[%clk 0:00:01]} 40. bxa8=Q {[%clk 0:00:54]} 1-0


[Site "https://www.chess.com"]

[Event "Titled Tuesday Blitz May 10 Early 2022"]
[White "Sharbaf, Mohsen"]
[Black "Plotnikov, Pavel"]
[WhiteFideId "12501808"]
[BlackFideId "4170342"]
[WhiteElo "2187"]
[BlackElo "2298"]
[Result "1-0"]
[Round "01"]
[TimeControl "180+1"]
[Date "2022.05.11"]
[WhiteClock "0:01:43"]
[BlackClock "0:01:50"]

1. c4 {[%clk 0:02:57]}  e5 {[%clk 0:02:58]} 2. Nc3 {[%clk 0:02:47]}  d6 {[%clk 0:02:59]} 3. g3 {[%clk 0:02:47]}  f5 {[%clk 0:03:00]} 4. d4 {[%clk 0:02:46]}  Nd7 {[%clk 0:02:57]} 5. dxe5 {[%clk 0:02:42]}  dxe5 {[%clk 0:02:58]} 6. e4 {[%clk 0:02:38]}  Ngf6 {[%clk 0:02:54]} 7. exf5 {[%clk 0:02:36]}  Bd6 {[%clk 0:02:53]} 8. Bg2 {[%clk 0:02:36]}  O-O {[%clk 0:02:53]} 9. Nf3 {[%clk 0:02:30]}  Nb6 {[%clk 0:02:52]} 10. O-O {[%clk 0:02:29]}  Nxc4 {[%clk 0:02:52]} 11. Qb3 {[%clk 0:02:26]}  Kh8 {[%clk 0:02:46]} 12. Qxc4 {[%clk 0:02:24]}  Bxf5 {[%clk 0:02:47]} 13. Bg5 {[%clk 0:02:18]}  c6 {[%clk 0:02:42]} 14. Rad1 {[%clk 0:02:16]}  Qc7 {[%clk 0:02:40]} 15. Bxf6 {[%clk 0:02:14]}  gxf6 {[%clk 0:02:38]} 16. Nh4 {[%clk 0:02:11]}  Bd7 {[%clk 0:02:33]} 17. Ne4 {[%clk 0:02:08]}  Be7 {[%clk 0:02:33]} 18. Nc5 {[%clk 0:02:08]}  Rad8 {[%clk 0:02:25]} 19. Ne6 {[%clk 0:02:07]}  Bxe6 {[%clk 0:02:22]} 20. Qxe6 {[%clk 0:02:07]}  Rxd1 {[%clk 0:02:22]} 21. Rxd1 {[%clk 0:02:06]}  Rd8 {[%clk 0:02:22]} 22. Rxd8+ {[%clk 0:02:06]}  Qxd8 {[%clk 0:02:23]} 23. Nf5 {[%clk 0:02:01]}  Bf8 {[%clk 0:02:21]} 24. Qf7 {[%clk 0:01:56]}  c5 {[%clk 0:02:02]} 25. Bd5 {[%clk 0:01:52]}  Bh6 {[%clk 0:01:58]} 26. Nxh6 {[%clk 0:01:49]}  c4 {[%clk 0:01:58]} 27. Ng4 {[%clk 0:01:46]}  c3 {[%clk 0:01:54]} 28. bxc3 {[%clk 0:01:45]}  e4 {[%clk 0:01:54]} 29. Nxf6 {[%clk 0:01:45]}  Qc8 {[%clk 0:01:50]} 30. Qxh7# {[%clk 0:01:43]} 1-0


[Site "https://www.chess.com"]

[Event "Titled Tuesday Blitz May 10 Early 2022"]
[White "Shukhman, Anna"]
[Black "Samunenkov, Ihor"]
[WhiteFideId "54180058"]
[BlackFideId "14187086"]
[WhiteElo "1726"]
[BlackElo "2409"]
[Result "1-0"]
[Round "01"]
[TimeControl "180+1"]
[Date "2022.05.11"]
[WhiteClock "0:00:08"]
[BlackClock "0:00:01"]

1. e4 {[%clk 0:03:00]}  c5 {[%clk 0:02:57]} 2. Nf3 {[%clk 0:02:59]}  Nc6 {[%clk 0:02:57]} 3. Bb5 {[%clk 0:02:57]}  g6 {[%clk 0:02:57]} 4. O-O {[%clk 0:02:56]}  Bg7 {[%clk 0:02:58]} 5. c3 {[%clk 0:02:56]}  e5 {[%clk 0:02:58]} 6. d4 {[%clk 0:02:56]}  cxd4 {[%clk 0:02:57]} 7. cxd4 {[%clk 0:02:56]}  exd4 {[%clk 0:02:58]} 8. Bf4 {[%clk 0:02:50]}  a6 {[%clk 0:02:57]} 9. Ba4 {[%clk 0:02:33]}  Nge7 {[%clk 0:02:25]} 10. Bd6 {[%clk 0:02:30]}  b5 {[%clk 0:02:22]} 11. Bb3 {[%clk 0:02:28]}  O-O {[%clk 0:02:04]} 12. e5 {[%clk 0:02:12]}  Bb7 {[%clk 0:01:57]} 13. Re1 {[%clk 0:02:07]}  Na5 {[%clk 0:01:35]} 14. Nxd4 {[%clk 0:02:00]}  Nxb3 {[%clk 0:01:34]} 15. axb3 {[%clk 0:01:55]}  Re8 {[%clk 0:01:33]} 16. Nc3 {[%clk 0:01:53]}  Nc6 {[%clk 0:01:30]} 17. Nxc6 {[%clk 0:01:51]}  Bxc6 {[%clk 0:01:31]} 18. f4 {[%clk 0:01:42]}  Qb6+ {[%clk 0:01:12]} 19. Kh1 {[%clk 0:01:40]}  Qb7 {[%clk 0:01:13]} 20. Qd2 {[%clk 0:01:21]}  Re6 {[%clk 0:00:53]} 21. Rad1 {[%clk 0:01:11]}  Rae8 {[%clk 0:00:45]} 22. Re2 {[%clk 0:00:40]}  f6 {[%clk 0:00:28]} 23. Rde1 {[%clk 0:00:19]}  fxe5 {[%clk 0:00:25]} 24. fxe5 {[%clk 0:00:19]}  a5 {[%clk 0:00:08]} 25. Ne4 {[%clk 0:00:18]}  Bxe4 {[%clk 0:00:05]} 26. Rxe4 {[%clk 0:00:18]}  Qc6 {[%clk 0:00:05]} 27. h3 {[%clk 0:00:16]}  a4 {[%clk 0:00:04]} 28. bxa4 {[%clk 0:00:16]}  bxa4 {[%clk 0:00:05]} 29. R4e3 {[%clk 0:00:14]}  Qb5 {[%clk 0:00:05]} 30. Qf2 {[%clk 0:00:12]}  Bxe5 {[%clk 0:00:04]} 31. Bxe5 {[%clk 0:00:11]}  Rxe5 {[%clk 0:00:04]} 32. Rxe5 {[%clk 0:00:11]}  Rxe5 {[%clk 0:00:05]} 33. Rf1 {[%clk 0:00:11]}  Qxf1+ {[%clk 0:00:02]} 34. Qxf1 {[%clk 0:00:11]}  Rf5 {[%clk 0:00:02]} 35. Qc4+ {[%clk 0:00:10]}  d5 {[%clk 0:00:01]} 36. Qxa4 {[%clk 0:00:11]}  Kg7 {[%clk 0:00:02]} 37. Qd7+ {[%clk 0:00:11]}  Kh6 {[%clk 0:00:02]} 38. b4 {[%clk 0:00:10]}  Rf1+ {[%clk 0:00:02]} 39. Kh2 {[%clk 0:00:10]}  Rb1 {[%clk 0:00:02]} 40. b5 {[%clk 0:00:10]}  d4 {[%clk 0:00:02]} 41. Qc6 {[%clk 0:00:09]}  d3 {[%clk 0:00:02]} 42. Qd5 {[%clk 0:00:08]}  Kg7 {[%clk 0:00:01]} 43. Qxd3 {[%clk 0:00:08]} 1-0


[Site "https://www.chess.com"]

[Event "Titled Tuesday Blitz May 10 Early 2022"]
[White "Shuvalov, Evgenij"]
[Black "Jumabayev, Rinat"]
[WhiteFideId "4187237"]
[BlackFideId "13702661"]
[WhiteElo "2053"]
[BlackElo "2561"]
[Result "0-1"]
[Round "01"]
[TimeControl "180+1"]
[Date "2022.05.10"]
[WhiteClock "0:00:01"]
[BlackClock "0:00:11"]

1. Nf3 {[%clk 0:02:58]}  Nf6 {[%clk 0:02:59]} 2. c4 {[%clk 0:02:51]}  b6 {[%clk 0:03:00]} 3. g3 {[%clk 0:02:50]}  Bb7 {[%clk 0:02:59]} 4. Bg2 {[%clk 0:02:50]}  g6 {[%clk 0:02:56]} 5. O-O {[%clk 0:02:50]}  c5 {[%clk 0:02:56]} 6. d4 {[%clk 0:02:49]}  cxd4 {[%clk 0:02:57]} 7. Qxd4 {[%clk 0:02:49]}  Bg7 {[%clk 0:02:57]} 8. Nc3 {[%clk 0:02:49]}  O-O {[%clk 0:02:57]} 9. Qh4 {[%clk 0:02:48]}  d6 {[%clk 0:02:57]} 10. Rd1 {[%clk 0:02:47]}  Nbd7 {[%clk 0:02:57]} 11. Be3 {[%clk 0:02:46]}  Rc8 {[%clk 0:02:57]} 12. Rac1 {[%clk 0:02:43]}  a6 {[%clk 0:02:51]} 13. b3 {[%clk 0:02:42]}  Rc7 {[%clk 0:02:49]} 14. Bh3 {[%clk 0:02:36]}  Qa8 {[%clk 0:02:46]} 15. Nd4 {[%clk 0:02:22]}  Ne5 {[%clk 0:01:55]} 16. g4 {[%clk 0:01:48]}  Ne4 {[%clk 0:01:02]} 17. Nxe4 {[%clk 0:01:13]}  Bxe4 {[%clk 0:01:03]} 18. f4 {[%clk 0:01:04]}  Nc6 {[%clk 0:00:59]} 19. Qf2 {[%clk 0:00:58]}  Nb8 {[%clk 0:00:39]} 20. Nf3 {[%clk 0:00:34]}  b5 {[%clk 0:00:38]} 21. c5 {[%clk 0:00:30]}  Bb2 {[%clk 0:00:20]} 22. cxd6 {[%clk 0:00:23]}  Rxc1 {[%clk 0:00:20]} 23. Bxc1 {[%clk 0:00:23]}  Bxc1 {[%clk 0:00:20]} 24. Rxc1 {[%clk 0:00:24]}  exd6 {[%clk 0:00:20]} 25. Bg2 {[%clk 0:00:18]}  Re8 {[%clk 0:00:19]} 26. Qd4 {[%clk 0:00:17]}  Nc6 {[%clk 0:00:19]} 27. Qxd6 {[%clk 0:00:16]}  Qa7+ {[%clk 0:00:19]} 28. Qc5 {[%clk 0:00:15]}  Qd7 {[%clk 0:00:19]} 29. Kf2 {[%clk 0:00:09]}  Qxg4 {[%clk 0:00:17]} 30. Rd1 {[%clk 0:00:06]}  Qxf4 {[%clk 0:00:17]} 31. Qd6 {[%clk 0:00:05]}  Qf5 {[%clk 0:00:15]} 32. Qd2 {[%clk 0:00:02]}  Ne5 {[%clk 0:00:14]} 33. Qg5 {[%clk 0:00:02]}  Ng4+ {[%clk 0:00:11]} 34. Kg3 {[%clk 0:00:02]}  Qxg5 {[%clk 0:00:11]} 35. Nxg5 {[%clk 0:00:01]}  Ne3 {[%clk 0:00:12]} 36. Bxe4 {[%clk 0:00:01]}  Nxd1 {[%clk 0:00:12]} 37. Bb7 {[%clk 0:00:01]}  a5 {[%clk 0:00:11]} 38. Bc6 {[%clk 0:00:01]}  Re5 {[%clk 0:00:11]} 0-1


[Site "https://www.chess.com"]